{"text_format":"1","workbook":"xlsx","n_sheets":13,"sheets":["1. Forside","2. Samlet prisloft","3. Driftsomkostninger","4. Historiske investeringer","5. Gennemførte investeringer","6. Korrektion investeringer","7. Planlagte investeringer","8. 1-1 omkostninger","9. Miljø- og servicemål","10. Klimatilpasning","11. Nettofinansielle poster","12. Over- eller underdækning","13. Kontrol med indtægtsrammen"],"not_rendered":{"charts":0,"images":0,"macros":1,"external_links":0,"defined_names":0,"comments":0,"pivot_tables":0},"unopened":[],"bounds":{"document_bytes":16777216,"sheet_cells":100000,"rows_first":2000,"rows_last":500,"rows_between":2000,"halvings":0,"cell_chars":16384,"cell_head_chars":4096},"cells_cut":0,"cells_raw":0,"read":"whole","date_system":"1900"}

{"sheet":"1. Forside","index":0,"n_rows":27,"n_cols":4,"rows_kept":27,"cut":false,"hidden":false,"merged":[[26,3,26,5],[25,3,25,5],[24,3,24,5],[23,3,23,5],[22,3,22,5],[21,3,21,5],[20,3,20,5],[19,3,19,5],[18,3,18,5],[7,3,7,5],[12,3,12,5],[15,3,15,5],[16,3,16,5],[17,3,17,5]]}
["Lyngby-Taarbæk Spildevand A/S"]
[]
[]
[]
[]
[]
[]
[null,null,null,"Bilag A"]
[]
[]
[]
[]
[null,null,null,"Indholdsfortegnelse"]
[]
[]
[null,null,"Fane nr. 2","Samlet prisloft "]
[null,null,"Fane nr. 3","Driftsomkostninger"]
[null,null,"Fane nr. 4","Historiske investeringer "]
[null,null,"Fane nr. 5","Gennemførte investeringer"]
[null,null,"Fane nr. 6","Korrektion investeringer"]
[null,null,"Fane nr. 7","Planlagte investeringer"]
[null,null,"Fane nr. 8","1:1 omkostninger"]
[null,null,"Fane nr. 9","Miljø- og servicemål"]
[null,null,"Fane nr. 10","Klimatilpasning"]
[null,null,"Fane nr. 11","Nettofinansielle poster"]
[null,null,"Fane nr. 12","Over- eller underdækning"]
[null,null,"Fane nr. 13","Kontrol med indtægtsrammen og oversigt over ekstraordinære effektiviseringsgevinster"]

{"sheet":"2. Samlet prisloft","index":1,"n_rows":38,"n_cols":6,"rows_kept":38,"cut":false,"hidden":false,"merged":[[3,1,3,5]]}
[{"$f":"'1. Forside'!A1","v":"Lyngby-Taarbæk Spildevand A/S"}]
[]
[]
[null,"Fane 2. Samlet prisloft for 2015"]
[]
[null,"Driftsomkostninger"]
[null,"Driftsomkostninger i prisloftet for 2014",{"$f":"'3. Driftsomkostninger'!C20","v":21806057.364803728},"kr."]
[null,"Bortfald af væsentlige omkostninger",{"$f":"-'3. Driftsomkostninger'!C16","v":0},"kr."]
[null,"Korrektion for prisudviklingen 2014-2015",{"$f":"'3. Driftsomkostninger'!C22","v":17444.845891842982},"kr."]
[null,"Forhøjelse til effektivt niveau iht. benchmarkingen",{"$f":"'3. Driftsomkostninger'!C28","v":0},"kr."]
[null,"Korrektion for generelt effektiviseringskrav",{"$f":"-'3. Driftsomkostninger'!C34","v":-95946.65240513641},"kr."]
[null,"Korrektion for individuelt effektiviseringskrav",{"$f":"-'3. Driftsomkostninger'!C43","v":-1090302.8682401865},"kr."]
[null,"Driftsomkostninger i alt",{"$f":"SUM(C7:C12)","v":20637252.690050252},"kr.",{"$f":"C13","v":20637252.690050252}," kr."]
[null,"Investeringer"]
[null,"Tillæg for historiske investeringer",{"$f":"'4. Historiske investeringer'!C9","v":18076278.932173472},"kr."]
[null,"Tillæg for gennemførte investeringer i 2011-2013",{"$f":"'5. Gennemførte investeringer'!F65","v":3967898.58},"kr."]
[null,"Korrektion af tillæg for planlagte investeringer vedrørende 2013  ",{"$f":"'6. Korrektion investeringer'!C10","v":-534683.46},"kr."]
[null,"Tillæg for planlagte investeringer i 2014 og 2015",{"$f":"'7. Planlagte investeringer'!F48","v":1211864.7593333335},"kr."]
[null,"Investeringstillæg i alt",{"$f":"SUM(C15:C18)","v":22721358.811506808},"kr.",{"$f":"C19","v":22721358.811506808}," kr."]
[null,"Øvrige omkostninger mv."]
[null,"Tillæg for 1:1 omkostninger i 2015",{"$f":"'8. 1-1 omkostninger'!C10","v":25105190},"kr."]
[null,"Tillæg vedr. revisorerklæringer og DANVA/FVD-kontingent",{"$f":"'8. 1-1 omkostninger'!C18","v":82060},"kr."]
[null,"Korrektion ift. faktiske 1:1 omkostninger i 2013",{"$f":"'8. 1-1 omkostninger'!C24","v":-784092},"kr."]
[null,"Tillæg for driftsomkostninger til miljø- og servicemål i 2015",{"$f":"'9. Miljø- og servicemål'!C8","v":0},"kr."]
[null,"Korrektion ift. faktiske driftsomkostninger til miljø- og servicemål i 2013",{"$f":"'9. Miljø- og servicemål'!C15","v":0},"kr."]
[null,"Tillæg for driftsomkostninger til medfinansiering af klimatilpasningsprojekter i 2015",{"$f":"'10. Klimatilpasning'!C11","v":3145350},"kr."]
[null,"Korrektion ift. faktiske omkostninger til medfinansiering af klimatilpasningsprojekter i 2013",{"$f":"'10. Klimatilpasning'!C18","v":0},"kr."]
[null,"Tillæg/fradrag for nettofinansielle poster i 2015",{"$f":"'11. Nettofinansielle poster'!C9","v":3202184},"kr."]
[null,"Korrektion ift. faktiske nettofinansielle poster i 2013",{"$f":"'11. Nettofinansielle poster'!C16","v":1029323},"kr."]
[null,"Øvrige omkostninger mv. i alt",{"$f":"SUM(C21:C29)","v":31780015},"kr.",{"$f":"C30","v":31780015}," kr."]
[null,"Historisk over- eller underdækning"]
[null,"Tillæg/fradrag for over- eller underdækning til og med 2010",{"$f":"'12. Over- eller underdækning'!C11","v":-7795732.5026455028},"kr.",{"$f":"C32","v":-7795732.5026455028}," kr."]
[null,"Korrektion i forhold til tidligere indtægtsramme "]
[null,"Korrektion for overholdelse af indtægtsramme i prisloft 2013",{"$f":"'13. Kontrol med indtægtsrammen'!E27","v":4664341.098328799},"kr.",{"$f":"C34","v":4664341.098328799}," kr."]
[null,"Samlet prisloft"]
[null,"Indtægtsramme i 2015 ",null,null,{"$f":"SUM(E13:E34)","v":72007235.097240344}," kr."]
[null,"Debiteret vandmængde i 2013",null,null,2747787," m3"]
[null,"Prisloft 2015",null,null,{"$f":"E36/E37","v":26.205537436941199}," kr./m3"]

{"sheet":"3. Driftsomkostninger","index":2,"n_rows":43,"n_cols":4,"rows_kept":43,"cut":false,"hidden":false,"merged":[[3,1,3,3]]}
[{"$f":"'1. Forside'!A1","v":"Lyngby-Taarbæk Spildevand A/S"}]
[]
[]
[null,"Fane 3. Driftsomkostninger "]
[]
[null,"Driftsomkostningerne i prisloftet for 2014"]
[null,"Korrigerede driftsomkostninger i prisloftet for 2013 (DOiPL 2013)",22596951.098328795,"kr."]
[null,"Prisfremskrivning 1,5 pct.",{"$f":"0.015*SUM(C7:C7)","v":338954.26647493191},"kr."]
[null,"Generelt effektiviseringskrav (0 pct.)",0,"kr."]
[null,"Individuelt effektiviseringskrav ",-1129848,"kr."]
[null,"Driftsomkostningerne i prisloftet for 2014 (DOiPL 2014)",{"$f":"SUM(C7:C10)","v":21806057.364803728},"kr."]
[]
[]
[null,"Korrektion for forventet bortfald af væsentlige omkostninger"]
[null,"Selskabets indberettede bortfald af væsentlige omkostninger inden 2015",0,"kr."]
[null,"Korrektion for forventet bortfald ",{"$f":"SUM(C15:C15)","v":0},"kr."]
[]
[]
[null,"Korrektion for prisudviklingen fra 2014-2015"]
[null,"Driftsomkostningerne i prisloftet for 2014",{"$f":"C11-C16","v":21806057.364803728},"kr."]
[null,"Prisudvikling 2014 - 2015 ",0.08,"pct."]
[null,"Korrektion for prisudvikling",{"$f":"C20*(C21/100)","v":17444.845891842982},"kr."]
[]
[]
[null,"Eventuel forhøjelse til effektivt niveau iht. benchmarkingen"]
[null,"Selskabets effektive driftsomkostninger iht. benchmarkingen",10438559.660531545,"kr."]
[null,"Selskabets pristalskorrigerede driftsomkostninger i 2015-niveau",{"$f":"C20+C22","v":21823502.210695572},"kr."]
[null,"Eventuel forhøjelse til effektivt niveau",{"$f":"IF(C27>C26,0,C26-C27)","v":0},"kr."]
[]
[]
[null,"Korrektion for generelt effektiviseringskrav"]
[null,"Driftsomkostningerne i prisloftet for 2014",{"$f":"C20","v":21806057.364803728},"kr. "]
[null,"Generelt effektiviseringskrav ",0.44,"pct."]
[null,"Endeligt generelt effektiviseringskrav",{"$f":"C32*(C33/100)","v":95946.65240513641},"kr. "]
[]
[]
[null,"Korrektion for individuelt effektiviseringskrav"]
[null,"Rå effektiviseringspotentiale",11387123.155900506,"kr."]
[null,"Effektiviseringspotentiale efter eventuel korrektion for særlige forhold",11367497.704272183,"kr."]
[null,"Effektiviseringspotentiale efter forsigtighedshensyn",8676630.2254554033,"kr."]
[null,"Effektiviseringspotentiale efter eventuel korrektion for sammensætning af signifikante costdrivere",8676630.2254554033,"kr. "]
[null,"Umiddelbart effektiviseringskrav",{"$f":"C41/4","v":2169157.5563638508},"kr."]
[null,"Endeligt individuelt effektiviseringskrav",{"$f":"IF(C42>0.05*C20,0.05*C20,IF(C42<0.01*C20,0,C42))","v":1090302.8682401865},"kr. "]

{"sheet":"4. Historiske investeringer","index":3,"n_rows":9,"n_cols":4,"rows_kept":9,"cut":false,"hidden":false,"merged":[[3,1,3,2]]}
[{"$f":"'3. Driftsomkostninger'!A1","v":"Lyngby-Taarbæk Spildevand A/S"}]
[]
[]
[null,"Fane 4. Historiske investeringer "]
[]
[null,"Tillæg for historiske investeringer "]
[null,"Værdi af selskabets materielle anlægsaktiver pr. 1. januar 2010",603739262.08434463,"kr."]
[null,"Den årlige standardafskrivning på de materielle anlægsaktiver iht. POLKA",18076278.932173472,"kr."]
[null,"Tillæg i alt i 2015",{"$f":"C8","v":18076278.932173472},"kr."]

{"sheet":"5. Gennemførte investeringer","index":4,"n_rows":65,"n_cols":7,"rows_kept":65,"cut":false,"hidden":false,"merged":[[3,1,3,5],[6,5,6,6]]}
[{"$f":"'4. Historiske investeringer'!A1","v":"Lyngby-Taarbæk Spildevand A/S"}]
[]
[]
[null,"Fane 5. Gennemførte investeringer i 2010 - 2013 "]
[]
[null,"Tillæg for gennemførte investeringer i 2013"]
[null," Beskrivelse af investeringen   ","Årstal ","Std. levetid (år)   "," Anskaffelses-pris (kr.)","Afskrivning "]
[null,"Køretøjer, store lastvogne (> 3.500 kg.)",2013,5,37313,{"$f":"E8/D8","v":7462.6},"kr."]
[null,"Køretøjer, entreprenørmaskiner",2013,5,57500,{"$f":"E9/D9","v":11500},"kr."]
[null,"Arbejdsplads",2013,5,55057,11011.4,"kr."]
[null,"Køretøjer, entreprenørmaskiner",2013,5,35000,7000,"kr."]
[null,"Køretøjer, entreprenørmaskiner",2013,5,89000,17800,"kr."]
[null,"Køretøjer, entreprenørmaskiner",2013,5,385000,77000,"kr."]
[null,"Pumpestationer m. overbygning (< 20 m2), SRO",2013,10,27966,2796.6,"kr."]
[null,"Arbejdsplads",2013,5,224341,44868.2,"kr."]
[null,"Strømpeforing Ø 200 mm < Ledningsnet = Ø 500 mm",2013,50,1758752,35175.040000000001,"kr."]
[null,"Ledningsnet = Ø 200 mm",2013,75,1962627,26168.36,"kr."]
[null,"Pumpeinstallation Miljøklasse A (100-300 l/s) - Mek/EL",2013,20,150000,7500,"kr."]
[null,"Ledningsnet = Ø 200 mm",2013,75,217365,2898.2,"kr."]
[null,"Ø 200 mm < Ledningsnet = Ø 500 mm",2013,75,2350003,31333.373333333333,"kr."]
[null,"Forsinkelsesbassiner, lukkede med automatisk rensning og SRO Miljøklasse A (500-1.000 m3) - Mek/EL",2013,20,46639,2331.9499999999998,"kr."]
[null,"Forsinkelsesbassiner, lukkede med automatisk rensning og SRO Miljøklasse A (500-1.000 m3) - Konstruktioner",2013,75,186557,2487.4266666666667,"kr."]
[null,"Brønde",2013,75,3644562,48594.16,"kr."]
[null,"Stik",2013,75,911141,12148.546666666667,"kr."]
[null,"Ø 200 mm < Ledningsnet = Ø 500 mm",2013,75,4555702,60742.693333333336,"kr."]
[null,"Ø 800 mm < Ledningsnet = Ø 1000 mm",2013,75,168701,2249.3466666666668,"kr."]
[null,"Pumpestationer i brønde (< 6,25 m2), Mek/EL",2013,20,19502,975.1,"kr."]
[null,"Brønde",2013,75,154510,2060.1333333333332,"kr."]
[null,"Stik",2013,75,154510,2060.1333333333332,"kr."]
[null,"Ø 200 mm < Ledningsnet = Ø 500 mm",2013,75,308905,4118.7333333333336,"kr."]
[null,"Ø 200 mm < Ledningsnet = Ø 500 mm",2013,75,764005,10186.733333333334,"kr."]
[null,"Ø 200 mm < Ledningsnet = Ø 500 mm",2013,75,339830,4531.0666666666666,"kr."]
[null,"Ø 200 mm < Ledningsnet = Ø 500 mm",2013,75,81123,1081.6400000000001,"kr."]
[null,"Pumpestationer i brønde (< 6,25 m2), Mek/EL",2013,20,29450,1472.5,"kr."]
[null,"Ø 200 mm < Ledningsnet = Ø 500 mm",2013,75,771984,10293.120000000001,"kr."]
[null,"Ø 200 mm < Ledningsnet = Ø 500 mm",2013,75,4621460,61619.466666666667,"kr."]
[null,"Strømpeforing = Ø 200 mm",2013,50,1470557,29411.14,"kr."]
[null,"Pumpestationer i brønde (< 6,25 m2), Konstruktioner",2013,50,16862,337.24,"kr."]
[null,"Pumpestationer m. overbygning (< 20 m2), Konstruktioner",2013,50,73761,1475.22,"kr."]
[null,"Strømpeforing Ø 200 mm < Ledningsnet = Ø 500 mm",2013,50,95863,1917.26,"kr."]
[null,"Strømpeforing = Ø 200 mm",2013,50,165651,3313.02,"kr."]
[null,"Strømpeforing = Ø 200 mm",2013,50,1124017,22480.34,"kr."]
[null,"Strømpeforing Ø 200 mm < Ledningsnet = Ø 500 mm",2013,50,5419081,108381.62,"kr."]
[null,"Forsinkelsesbassiner, lukkede med automatisk rensning og SRO Miljøklasse A (500-1.000 m3) - SRO",2013,10,1163215,116321.5,"kr."]
[null,"Forsinkelsesbassiner, lukkede med automatisk rensning og SRO Miljøklasse A (500-1.000 m3) - Mek/EL",2013,20,2093787,104689.35,"kr."]
[null,"Forsinkelsesbassiner, lukkede med automatisk rensning og SRO Miljøklasse A (500-1.000 m3) - Konstruktioner",2013,75,20007298,266763.97333333333,"kr."]
[null,"Forsinkelsesbassiner, lukkede med automatisk rensning og SRO Miljøklasse A (500-1.000 m3) - SRO",2013,10,2123343,212334.3,"kr."]
[null,"Forsinkelsesbassiner, lukkede med automatisk rensning og SRO Miljøklasse A (500-1.000 m3) - Mek/EL",2013,20,2831124,141556.20000000001,"kr."]
[null,"Forsinkelsesbassiner, lukkede med automatisk rensning og SRO Miljøklasse A (500-1.000 m3) - Konstruktioner",2013,75,9201153,122682.04,"kr."]
[null,"Pumpestationer i brønde (< 6,25 m2), SRO",2013,10,434960,43496,"kr."]
[null,"Pumpestationer i brønde (< 6,25 m2), Mek/EL",2013,20,434960,21748,"kr."]
[null,"Pumpestationer i brønde (< 6,25 m2), Konstruktioner",2013,50,724933,14498.66,"kr."]
[null,"Strømpeforing = Ø 200 mm",2013,50,289973,5799.46,"kr."]
[null,"Ledningsnet = Ø 200 mm",2013,75,1014907,13532.093333333334,"kr."]
[null,"Ø 200 mm < Ledningsnet = Ø 500 mm",2013,75,2899733,38663.106666666667,"kr."]
[null,"Ø 1000 mm < Ledningsnet = Ø 1200 mm",2013,75,8699200,115989.33333333333,"kr."]
[null,"Ledningsnet = Ø 200 mm",2013,75,8594847,114597.96,"kr."]
[null,"Ø 200 mm < Ledningsnet = Ø 500 mm",2013,75,1119010,14920.133333333333,"kr."]
[null,"Ø 1000 mm < Ledningsnet = Ø 1200 mm",2013,75,3844849,51264.653333333335,"kr."]
[null,"Pumpestationer i brønde (< 6,25 m2), Mek/EL",2013,20,71415,3570.75,"kr."]
[null,"Forsinkelsesbassiner, lukkede uden automatisk rensning og SRO Miljøklasse B (mindre end 1.000 m3)",2013,50,1076854,21537.08,"kr."]
[null,"Ledningsnet = Ø 200 mm",2013,75,285661,3808.8133333333335,"kr."]
[null,"Tillæg for 2013 ",null,null,null,{"$f":"SUM(F8:F62)","v":2104555.77},"kr."]
[null,"Tillæg for 2010 - 2012",null,null,null,1863342.81,"kr."]
[null,"Samlet tillæg for gennemførte investeringer",null,null,null,{"$f":"F63+F64","v":3967898.58},"kr."]

{"sheet":"6. Korrektion investeringer","index":5,"n_rows":10,"n_cols":4,"rows_kept":10,"cut":false,"hidden":false,"merged":[[3,1,3,3]]}
[{"$f":"'5. Gennemførte investeringer'!A1","v":"Lyngby-Taarbæk Spildevand A/S"}]
[]
[]
[null,"Fane 6. Korrektion af tillæg for planlagte investeringer"]
[]
[null,"Korrektion af tillæg for planlagte investeringer vedr. 2013"]
[null,"Tillæg for planlagte investeringer i 2013 i prisloft 2013",2864079,"kr."]
[null,"Tillæg for planlagte investeringer i 2013 i prisloft 2014",1879716,"kr."]
[null,"Selskabets faktiske afskrivninger på gennemførte investeringer i 2013",{"$f":"'5. Gennemførte investeringer'!F63","v":2104555.77},"kr."]
[null,"Korrektion af tillæg for planlagte investeringer vedr. 2013",{"$f":"C9-C7+C9-C8","v":-534683.46},"kr."]

{"sheet":"7. Planlagte investeringer","index":6,"n_rows":48,"n_cols":7,"rows_kept":48,"cut":false,"hidden":false,"merged":[[6,5,6,6],[3,1,3,6]]}
[{"$f":"'6. Korrektion investeringer'!A1","v":"Lyngby-Taarbæk Spildevand A/S"}]
[]
[]
[null,"Fane 7. Planlagte investeringer "]
[]
[null,"Tillæg for planlagte investeringer i 2014 og 2015"]
[null,"Beskrivelse af investeringen   ","Årstal ","Std. levetid (år)   ","Anskaffelses-pris (kr.)   ","Afskrivning"]
[null,"Små pumpestationer inkl. SRO-anlæg - By__Pumpestationer i brønde (< 6,25 m2), Konstruktioner",2014,50,206300,4126,"kr."]
[null,"Små pumpestationer inkl. SRO-anlæg - By__Pumpestationer i brønde (< 6,25 m2), Mek/EL",2014,20,55550,2777.5,"kr."]
[null,"Små pumpestationer inkl. SRO-anlæg - By__Pumpestationer i brønde (< 6,25 m2), SRO",2014,10,11110,1111,"kr."]
[null,"Store pumpestationer: inkl. SRO-anlæg - By__Pumpeinstallation Miljøklasse A (100-300 l/s) - Mek/EL",2014,20,331230,16561.5,"kr."]
[null,"Forsinkelsesbassiner - By__Forsinkelsesbassiner, lukkede med automatisk rensning og SRO Miljøklasse A (500-1.000 m3) - Konstruktioner",2014,75,2300000,30666.666666666668,"kr."]
[null,"Ledningsnet - By__Ø 200 mm < Ledningsnet ≤ Ø 500 mm ",2014,75,515000,6866.666666666667,"kr."]
[null,"Brønde og stik, ledningsnet - By__Brønde",2014,75,320000,4266.666666666667,"kr."]
[null,"Brønde og stik, ledningsnet - By__Stik",2014,75,80000,1066.6666666666667,"kr."]
[null,"Store pumpestationer: inkl. SRO-anlæg - By__Pumpeinstallation Miljøklasse A (100-300 l/s) - Mek/EL",2014,20,370000,18500,"kr."]
[null,"Ledningsnet - By__Ledningsnet ",2014,75,830800,11077.333333333334,"kr."]
[null,"Forsinkelsesbassiner - City__Forsinkelsesbassiner, lukkede med automatisk rensning og SRO Miljøklasse A (500-1.000 m3) - Konstruktioner",2014,75,132077,1761.0266666666666,"kr."]
[null,"Forsinkelsesbassiner - City__Forsinkelsesbassiner, lukkede med automatisk rensning og SRO Miljøklasse A (500-1.000 m3) - Mek/EL",2014,20,4265,213.25,"kr."]
[null,"Forsinkelsesbassiner - City__Forsinkelsesbassiner, lukkede med automatisk rensning og SRO Miljøklasse A (500-1.000 m3) - SRO ",2014,10,4265,426.5,"kr."]
[null,"Store pumpestationer: inkl. SRO-anlæg - City__Pumpeinstallation Miljøklasse A (100-300 l/s) - Mek/EL",2014,20,3412,170.6,"kr."]
[null,"Ledningsnet - Indre city__Ø 200 mm < Ledningsnet ≤ Ø 500 mm ",2014,75,3412,45.493333333333332,"kr."]
[null,"Ledningsnet - Indre city__Ledningsnet ≤ Ø 200 mm ",2014,75,1706,22.746666666666666,"kr."]
[null,"Ledningsnet - By__Ø 1200 mm < Ledningsnet ≤ Ø 1600 mm",2014,75,212472,2832.96,"kr."]
[null,"Ledningsnet - By__Ø 200 mm < Ledningsnet ≤ Ø 500 mm ",2014,75,75545.600000000006,1007.2746666666667,"kr."]
[null,"Brønde og stik, ledningsnet - By__Brønde",2014,75,47216,629.54666666666662,"kr."]
[null,"Små pumpestationer inkl. SRO-anlæg - By__Pumpestationer i brønde (< 6,25 m2), SRO",2014,10,56659.199999999997,5665.92,"kr."]
[null,"Ledningsnet - By__Strømpeforing ≤ Ø 200 mm",2014,50,37772.800000000003,755.45600000000002,"kr."]
[null,"Ledningsnet - By__Ø 500 mm < Ledningsnet ≤ Ø 800 mm",2014,75,42494.400000000001,566.59199999999998,"kr."]
[null,"Store pumpestationer: inkl. SRO-anlæg - By__Pumpeinstallation Miljøklasse B (100-300 l/s) - Mek/EL",2014,20,94000,4700,"kr."]
[null,"Ledningsnet - By__Strømpeforing Ø 200 mm < Ledningsnet ≤ Ø 500 mm",2014,50,125000,2500,"kr."]
[null,"Brønde og stik, ledningsnet - By__Brønde",2014,75,300000,4000,"kr."]
[null,"Ledningsnet - By__Strømpeforing Ø 200 mm < Ledningsnet ≤ Ø 500 mm",2014,50,636600,12732,"kr."]
[null,"Overløbsbygværker - By__Installationer \"ingen eller faste riste\" (mindre end 7 m2)",2014,20,500000,25000,"kr."]
[null,"Ø 500 mm < Ledningsnet ≤ Ø 800 mm/by",2014,50,11948058,238961.16,"kr."]
[null,"Ledningsnet - citiy__Strømpeforing Ø 200 mm < Ledningsnet ≤ Ø 500 mm",2014,50,740000,14800,"kr."]
[null,"Ledningsnet - citiy__Strømpeforing Ø 500 mm < Ledningsnet ≤ Ø 800 mm",2014,20,1974590,98729.5,"kr."]
[null,"Store pumpestationer: inkl. SRO-anlæg - City__Pumpeinstallation Miljøklasse A (100-300 l/s) - Mek/EL",2014,75,5949355,79324.733333333337,"kr."]
[null,"Ø 200 mm < Ledningsnet = Ø 500 mm   ",2015,75,12900000,172000,"kr."]
[null,"Ø 500 mm < Ledningsnet = Ø 800 mm   ",2015,75,3600000,48000,"kr."]
[null,"Jordbassin Klasse B   ",2015,50,1800000,36000,"kr."]
[null,"Ø 500 mm < Ledningsnet = Ø 800 mm   ",2015,75,5400000,72000,"kr."]
[null,"Jordbassin Klasse A   ",2015,50,3600000,72000,"kr."]
[null,"Strømpeforing Ø 200 mm < Ledningsnet = Ø 500 mm   ",2015,50,8800000,176000,"kr."]
[null,"Strømpeforing Ø 500 mm < Ledningsnet = Ø 800 mm   ",2015,50,2200000,44000,"kr."]
[null,"Tillæg for 2014",null,null,null,{"$f":"SUMIF(C8:C45,\"2014\",F8:F45)","v":591864.75933333347},"kr."]
[null,"Tillæg for 2015",null,null,null,{"$f":"SUMIF(C8:C45,\"2015\",F8:F45)","v":620000},"kr."]
[null,"Tillæg i alt",null,null,null,{"$f":"F46+F47","v":1211864.7593333335},"kr."]

{"sheet":"8. 1-1 omkostninger","index":7,"n_rows":24,"n_cols":4,"rows_kept":24,"cut":false,"hidden":false,"merged":[[3,1,3,3],[14,1,14,3],[20,1,20,3]]}
[{"$f":"'7. Planlagte investeringer'!A1","v":"Lyngby-Taarbæk Spildevand A/S"}]
[]
[]
[null,"Fane 8. 1:1 omkostninger"]
[]
[null,"Tillæg for budgetterede 1:1 omkostninger i 2015"]
[null,"Betaling til Forsyningssekretariatet",33000,"kr."]
[null,"Køb af varer og tjenesteydelser hos et andet prisloftreguleret vandselskab",24457190,"kr."]
[null,"Ejendomsskatter",615000,"kr."]
[null,"Tillæg i alt ",{"$f":"SUM(C7:C9)","v":25105190},"kr."]
[]
[]
[]
[]
[null,"Tillæg for budgetterede nødvendige udgifter til revisorerklæringer samt ordinært medlemskab af DANVA og FVD i 2015"]
[null,"Betaling for ordinært medlemskab af DANVA/FVD",60000,"kr."]
[null,"Betaling for revisorerklæringer",22060,"kr."]
[null,"Tillæg i alt ",{"$f":"SUM(C16:C17)","v":82060},"kr."]
[]
[]
[null,"Korrektion af tillæg for faktiske 1:1 omkostninger (inkl. revisorerklæringer og ordinært medlemskab af DANVA/FVD) i 2013"]
[null,"Selskabets faktiske 1:1 omkostninger mv. i 2013, jf. reguleringsregnskabet",35971715,"kr."]
[null,"Tillæg for budgetterede 1:1 omkostninger mv. i prisloft 2013",36755807,"kr."]
[null,"Korrektion af tillæg for budgetterede 1:1 omkostninger mv. i 2013",{"$f":"C22-C23","v":-784092},"kr."]

{"sheet":"9. Miljø- og servicemål","index":8,"n_rows":15,"n_cols":4,"rows_kept":15,"cut":false,"hidden":false,"merged":[[3,1,3,3]]}
[{"$f":"'8. 1-1 omkostninger'!A1","v":"Lyngby-Taarbæk Spildevand A/S"}]
[]
[]
[null,"Fane 9. Driftsomkostninger til miljø- og servicemål "]
[]
[null,"Tillæg for budgetterede driftsomkostninger til miljø- og servicemål i 2015"]
[null,null,0,"kr."]
[null,"Tillæg i alt",{"$f":"SUM(C7:C7)","v":0},"kr."]
[]
[]
[]
[null,"Korrektion af tillæg for faktiske driftsomkostninger til miljø- og servicemål i 2013"]
[null,"Selskabets faktiske driftsomkostninger til miljø- og servicemål i 2013, jf. reguleringsregnskabet",0,"kr."]
[null,"Tillæg for budgetterede driftsomkostninger til miljø- og servicemål i prisloft 2013",0,"kr."]
[null,"Korrektion af tillæg for budgetterede driftsomkostninger til miljø- og servicemål i 2013",{"$f":"C13-C14","v":0},"kr."]

{"sheet":"10. Klimatilpasning","index":9,"n_rows":18,"n_cols":4,"rows_kept":18,"cut":false,"hidden":false,"merged":[[3,1,3,3],[14,1,14,3],[6,1,6,3]]}
[{"$f":"'9. Miljø- og servicemål'!A1","v":"Lyngby-Taarbæk Spildevand A/S"}]
[]
[]
[null,"Fane 10. Medfinansiering af klimatilpasningsprojekter"]
[]
[]
[null,"Tillæg for budgetterede omkostninger til medfinansiering af klimatilpasningsprojekter i 2015"]
[null,"Agervang (godkendt i PL2014)",3145350,"kr."]
[null,"Sorgenfrigård Nord (godkendt i PL2014)",0,"kr."]
[null,"Bondebyen (godkendt i PL2014)",0,"kr."]
[null,"Tillæg i alt",{"$f":" SUM(C8:C10)","v":3145350},"kr."]
[]
[]
[]
[null,"Korrektion af tillæg for faktiske omkostninger til medfinansiering af klimatilpasningsprojekter i 2013"]
[null,"Selskabets faktiske driftsomkostninger til klimatilpasningsprojekter i 2013, jf. reguleringsregnskabet",0,"kr."]
[null,"Tillæg for budgetterede driftsomkostninger til klimatilpasningsprojekter i prisloft 2013",0,"kr."]
[null,"Korrektion af tillæg for budgetterede omkostninger til klimatilpasningsprojekter i 2013",{"$f":"C16-C17","v":0},"kr."]

{"sheet":"11. Nettofinansielle poster","index":10,"n_rows":16,"n_cols":4,"rows_kept":16,"cut":false,"hidden":false,"merged":[[3,1,3,3]]}
[{"$f":"'10. Klimatilpasning'!A1","v":"Lyngby-Taarbæk Spildevand A/S"}]
[]
[]
[null,"Fane 11. Nettofinansielle poster"]
[]
[null,"Tillæg for budgetterede nettofinansielle poster i 2015"]
[null,"Budgetterede renteudgifter og gebyrer i 2015",3247184,"kr."]
[null,"Budgetterede renteindtægter i 2015",45000,"kr."]
[null,"Tillæg/fradrag i alt",{"$f":"C7-C8","v":3202184},"kr."]
[]
[]
[]
[null,"Korrektion af tillæg for faktiske nettofinansielle poster i 2013"]
[null,"Selskabets faktiske nettofinansielle poster i 2013, jf. reguleringsregnskabet",507683,"kr."]
[null,"Tillæg for budgetterede nettofinansielle poster i prisloft 2013",-521640,"kr."]
[null,"Korrektion af tillæg for budgetterede nettofinansielle poster i 2013",{"$f":"C14-C15","v":1029323},"kr."]

{"sheet":"12. Over- eller underdækning","index":11,"n_rows":11,"n_cols":4,"rows_kept":11,"cut":false,"hidden":false,"merged":[[3,1,3,3]]}
[{"$f":"'11. Nettofinansielle poster'!A1","v":"Lyngby-Taarbæk Spildevand A/S"}]
[]
[]
[null,"Fane 12. Over- eller underdækning til og med 2010"]
[]
[null,"Tillæg/fradrag for over- eller underdækning til og med 2010"]
[null,"Opgjort over- eller underdækning per 31. december 2010",-75380171,"kr."]
[null,"Heraf beløb indregnet i prislofterne for 2011 - 2014",-28605775.984126985,"kr."]
[null,"Endnu ikke indregnet over- eller underdækning",{"$f":"C7-C8","v":-46774395.015873015},"kr."]
[null,"Resterende indregningsperiode (fastsat i prisloftet for 2012)",6,"år"]
[null,"Tillæg/fradrag i alt",{"$f":"IF(C7=0,0,C9/C10)","v":-7795732.5026455028},"kr."]

{"sheet":"13. Kontrol med indtægtsrammen","index":12,"n_rows":38,"n_cols":12,"rows_kept":38,"cut":false,"hidden":false,"merged":[[3,1,3,5],[30,1,30,4],[5,1,5,5]]}
["Lyngby-Taarbæk Spildevand A/S"]
[]
[]
[null,"Fane 13. Korrektion for overholdelse af indtægtsrammen i prisloftet for 2013"]
[]
[null,"Samlet opgørelse vedrørende overholdelse af indtægtsrammen i prisloftet for 2013"]
[null,"Indtægtsramme i prisloftet for 2013",null,null,67463836.313629165,"kr."]
[null,"Ikke anvendt likviditet vedrørende investeringer i 2013"]
[null,"Tillæg for historiske investeringer ",19101392.215300366,"kr."]
[null,"Tillæg for gennemførte investeringer i 2011",687997,"kr."]
[null,"Korrektion af tillæg for planlagte investeringer i 2011",-1322426,"kr."]
[null,"Tillæg for planlagte investeringer i 2012 og 2013",3517181,"kr."]
[null,"Indtægter fra tilslutningsbidrag",53284,"kr."]
[null,"Indtægter fra salg af anlægsaktiver",65000,"kr."]
[null,"Erstatninger vedr. anlægsaktiver mv.",44283,"kr."]
[null,"Ekstraordinær effektiviseringsgevinst anvendt til investeringer",0,"kr."]
[null,"Udgifter til investeringer",-22146711,"kr."]
[null,"Ikke anvendt likviditet vedr. investeringer i alt",{"$f":"SUM(C9:C17)","v":0.21530036628246307},"kr.",{"$f":"IF(C18<0,0,-C18)","v":-0.21530036628246307},"kr."]
[null,"Ekstraordinære effektiviseringsgevinster anvendt til takstnedsættelse"]
[null,"Ekstraordinær effektiviseringsgevinst anvendt til takstnedsættelse",0,"kr.",{"$f":"-C20","v":0},"kr."]
[null,"Korrektion af ikke opkrævet tillæg fra 2011 i prisloft 2013"]
[null,"Korrektion af ikke opkrævet tillæg fra 2011 i prisloft 2013",0,"kr.",{"$f":"-C22","v":0},"kr."]
[null,"Indtægter fra primære aktiviteter mv."]
[null,"Indtægter fra kubikmetertakster, faste takster, særbidrag, målergebyrer samt andre takster og gebyrer",62785529,"kr."]
[null,"Andre indtægter i prisloftåret, som selskabet har opnået i forbindelse med eller som følge af selskabets primære aktiviteter",13966,"kr."]
[null,"Indtægter fra primære aktiviteter mv. i alt",{"$f":"SUM(C24:C25)","v":62799495},"kr.",{"$f":"-C26","v":-62799495},"kr."]
[null,"Tillæg/fradrag i prisloftet for 2015 i alt",null,null,{"$f":"E7+E18+E20+E22+E26","v":4664341.098328799},"kr."]
[]
[]
[]
[null,"Oversigt over ekstraordinære effektiviseringsgevinster"]
[]
[null,null,2012,null,2013,null,2014,null,2015,null,2016]
[null,"Indhentet ekstraordinær effektiviseringsgevinst",10255771,"kr.",10559853,"kr.",null,"kr.",null,"kr.",null,"kr."]
[null,"Gevinst anvendt til investeringer",1992263,"kr.",0,"kr.",null,"kr.",null,"kr.",null,"kr."]
[null,"Gevinst anvendt til takstnedsættelse",0,"kr.",0,"kr.",null,"kr.",null,"kr.",null,"kr."]
[null,"Korrektion for  effektiviseringsgevinst der ikke er anvendt inden 4 år",0,"kr.",0,"kr.",null,"kr.",null,"kr.",{"$f":"IF(C38>SUM(E35:I36),C38-SUM(E35:I36),0)*-1","v":-8263508},"kr."]
[null,"Resterende gevinst",{"$f":"C34-C35-C36","v":8263508},"kr.",{"$f":"C38+E34-E35-E36","v":18823361},"kr.",{"$f":"E38+G34-G35-G36","v":18823361},"kr.",{"$f":"G38+I34-I35-I36","v":18823361},"kr.",{"$f":"K34-K35-K36+K37+I38","v":10559853},"kr."]